bitfinex-derivatives/quotes_ETHF0:USTF0_20241230
["timestamp","ask_amount","ask_price","bid_price","bid_amount"]
[1735592630679,0.29467,3398.2,3398.1,0.29467]
[1735592631488,3.2078,3398.4,3397.9,5.57603606]
[1735592631681,3.2078,3398.4,3398.3,0.29466]
[1735592632587,3.50245,3398.4,3398.3,0.29466]
[1735592636091,0.29467,3398.2,3398.1,0.29467]
[1735592636588,0.29468,3398.1,3398.0,0.29468]
[1735592639186,6.64862834,3398.4,3398.1,0.29466]
[1735592639187,3.73549834,3398.2,3398.1,0.29466]
[1735592639483,3.73549834,3398.2,3398.1,41.09466]
[1735592640393,0.29467,3398.2,3398.1,41.09466]
[1735592643192,0.29467,3398.2,3398.1,40.8]
[1735592643391,0.29467,3398.2,3398.1,41.09467]
[1735592645893,3.44082834,3398.3,3398.2,0.29467]
[1735592646584,0.29467,3398.2,3398.1,40.8]
[1735592647398,0.29467,3398.2,3398.1,41.09467]
[1735592647892,0.29467,3398.2,3398.1,0.29467]
[1735592649197,3.73549834,3398.2,3398.1,0.29467]
[1735592650699,0.29467,3398.1,3397.8,7.93687476]
[1735592651000,0.8718,3398.1,3398.0,0.29468]
[1735592651399,0.8718,3398.1,3398.0,1.33556473]
[1735592652193,1.16647,3398.1,3398.0,1.33556473]
[1735592652501,0.8718,3398.1,3398.0,1.33556473]
[1735592653903,0.8718,3398.1,3398.0,0.29468]
[1735592655394,1.16647,3398.1,3398.0,0.29468]
[1735592655702,0.8718,3398.1,3398.0,0.29468]
[1735592655905,4.31262834,3398.1,3398.0,0.29468]
[1735592658805,4.31262834,3398.1,3398.0,1.33556473]
[1735592660906,1.16647,3398.1,3398.0,13.95870419]
[1735592661108,0.8718,3398.1,3398.0,13.95870419]
[1735592662004,4.31262834,3398.1,3398.0,7.06271416]
[1735592664607,4.31262834,3398.1,3398.0,13.95870419]
[1735592665512,4.31262834,3398.1,3398.0,7.06271416]
[1735592667111,4.60729834,3398.1,3398.0,6.02182943]
[1735592667308,4.31262834,3398.1,3398.0,6.02182943]
[1735592667914,4.60729834,3398.1,3398.0,0.29468]
[1735592668117,4.31262834,3398.1,3398.0,0.29468]
[1735592669513,4.60729834,3398.1,3398.0,0.29468]
[1735592669813,4.31262834,3398.1,3398.0,0.29468]
[1735592673116,4.3107316,3398.1,3398.0,0.29468]
[1735592676910,4.3107316,3398.1,3398.0,1.33556473]
[1735592677114,3.8916316,3398.1,3398.0,1.33556473]
[1735592677519,3.8916316,3398.1,3398.0,0.29468]
[1735592679911,3.8916316,3398.1,3398.0,6.00900413]
[1735592680327,3.8916316,3398.1,3398.0,7.04988886]
[1735592680512,3.44082834,3398.1,3398.0,7.04988886]
[1735592680915,3.44082834,3398.1,3398.0,13.94587889]
[1735592681713,3.44082834,3398.1,3398.0,12.90499416]
[1735592682018,3.44082834,3398.3,3398.2,0.29467]
[1735592683221,4.58777113,3398.3,3398.0,1.04088473]
[1735592683520,4.58777113,3398.3,3398.2,0.29467]
[1735592683915,4.58777113,3398.3,3398.2,41.09467]
[1735592684115,4.58777113,3398.3,3398.2,0.29467]
[1735592686723,4.88243113,3398.3,3398.2,0.29467]
[1735592688627,4.58777113,3398.3,3398.2,0.29467]
[1735592688828,4.88243113,3398.3,3398.2,0.29467]
[1735592689122,0.29467,3398.2,3398.1,0.29467]
[1735592689327,4.88243113,3398.3,3398.2,0.29467]
[1735592689529,0.29467,3398.2,3398.1,0.29467]
[1735592689936,4.88243113,3398.3,3398.2,0.29467]
[1735592690641,0.29466,3398.3,3398.2,0.29467]
[1735592691240,3.50246,3398.3,3398.2,0.29467]
[1735592692340,0.29467,3398.2,3398.1,0.29467]
[1735592693041,3.50246,3398.3,3398.2,0.29467]
[1735592693846,3.2078,3398.3,3398.0,1.04088473]
[1735592694046,3.50246,3398.3,3398.2,0.29467]
[1735592694947,8.09459764,3398.3,3398.2,0.29467]
[1735592700549,0.29467,3398.1,3398.0,7.25546784]
[1735592700749,0.29467,3398.1,3398.0,6.96078784]
[1735592700945,0.29468,3398.0,3397.9,48.05547784]
[1735592701952,0.29468,3398.0,3397.9,41.09469]
[1735592702152,0.73338,3398.0,3397.9,41.09469]
[1735592702454,0.2947,3397.8,3397.7,6.96078784]
[1735592702748,4.54338473,3397.8,3397.7,6.96078784]
[1735592703148,4.98448473,3397.8,3397.7,6.96078784]
[1735592703343,9.28192237,3397.8,3397.4,6.96078784]
[1735592703651,1.33561473,3397.5,3397.4,6.96078784]
[1735592704345,7.08176946,3397.5,3397.0,10.46817247]
[1735592704539,5.58432946,3397.1,3397.0,8.18089666]
[1735592704737,6.78132946,3397.1,3397.0,6.75971666]
[1735592704939,0.29482,3396.4,3396.3,4.68041666]
[1735592705151,4.54350473,3396.4,3396.3,4.68041666]
[1735592705947,4.54350473,3396.4,3396.3,2.60081666]
[1735592706147,10.58438946,3396.4,3396.3,6.66e-06]
[1735592706353,0.29487,3395.8,3395.7,13.76016271]
[1735592706651,4.54355473,3395.8,3395.7,13.76016271]
[1735592706949,4.54355473,3395.8,3394.9,20.64024407]
[1735592706950,4.24868473,3395.8,3394.7,0.73743]
[1735592707246,4.24868473,3395.4,3395.3,0.29492]
[1735592708142,3.2078,3395.4,3395.3,0.29492]
[1735592708343,5.48527811,3395.4,3395.3,0.29492]
[1735592708950,5.78018811,3395.4,3395.3,0.29492]
[1735592709152,5.48527811,3395.4,3395.3,0.29492]
[1735592709348,5.48527811,3395.4,3394.8,3.2078]
[1735592709548,2.37268139,3395.2,3394.8,3.2078]
[1735592709748,2.66761139,3395.2,3395.0,0.29494]
[1735592710150,2.37268139,3395.2,3394.5,0.8987]
[1735592710349,2.37268139,3395.2,3395.1,0.29493]
[1735592710653,5.78019811,3395.4,3395.1,0.29493]
[1735592710952,5.78019811,3395.4,3394.5,1.63615]
[1735592710953,5.78018811,3395.4,3395.2,0.29493]
[1735592711147,3.50271,3395.4,3395.2,0.29493]
[1735592711547,3.2078,3395.4,3394.5,0.8987]
[1735592711850,2.66762139,3395.0,3394.8,0.29496]
[1735592712041,2.66762139,3395.0,3394.7,0.29497]
[1735592712244,2.66762139,3395.0,3394.5,0.8987]
[1735592712446,0.29495,3394.9,3394.7,0.29497]
[1735592712954,2.66763139,3395.0,3394.7,0.29497]
[1735592713250,0.29497,3394.8,3394.5,0.29498]
[1735592713453,2.37268139,3394.7,3394.6,0.29498]
[1735592713950,2.37268139,3394.7,3394.5,0.29498]
[1735592714257,2.37268139,3394.7,3394.4,3.2078]
[1735592714258,2.37268139,3394.7,3394.6,0.29498]
[1735592714448,2.37268139,3394.7,3394.4,3.2078]
[1735592715047,3.2078,3394.9,3394.6,0.29498]
[1735592715553,3.2078,3394.9,3394.7,0.29497]
[1735592715745,3.2078,3394.9,3394.4,3.2078]
[1735592715943,2.66766139,3394.7,3394.3,0.295]
[1735592716657,2.37268139,3394.7,3393.9,3.2078]
[1735592716844,2.66766139,3394.7,3394.3,0.295]
[1735592717048,2.66766139,3394.7,3393.9,3.2078]
[1735592717558,2.66766139,3394.7,3394.3,0.295]
[1735592717855,0.29499,3394.5,3393.9,3.2078]
[1735592718156,2.37268139,3394.7,3393.9,3.2078]
[1735592718345,0.29499,3394.5,3393.9,3.2078]
[1735592718549,0.29499,3394.5,3394.2,0.29501]
[1735592718955,2.37268139,3394.7,3394.2,0.29501]
[1735592719256,2.37268139,3394.7,3393.9,3.2078]
[1735592719755,2.37268139,3394.7,3394.1,0.29502]
[1735592719756,0.295,3394.3,3394.1,0.29502]
[1735592720054,0.295,3394.4,3394.1,0.29502]
[1735592720359,0.295,3394.4,3394.2,0.29501]
[1735592720557,0.29498,3394.6,3394.2,0.29501]
[1735592720758,2.37268139,3394.7,3394.3,0.295]
[1735592721057,0.29499,3394.5,3394.3,0.295]
[1735592721246,0.29501,3394.3,3394.0,0.29503]
[1735592721454,0.295,3394.4,3393.9,3.2078]
[1735592721650,0.295,3394.4,3394.1,0.29501]
[1735592721850,0.295,3394.4,3394.1,41.09501]
[1735592722256,0.295,3394.4,3394.2,0.29501]
[1735592723357,0.29498,3394.6,3394.2,0.29501]
[1735592723658,0.295,3394.4,3394.3,0.295]
[1735592724253,0.29501,3394.3,3394.2,0.29501]
[1735592724453,3.50281,3394.3,3394.2,0.29501]
[1735592726356,0.29502,3394.2,3394.1,0.29501]
[1735592727257,3.2078,3394.3,3393.9,40.8]
[1735592727453,3.2078,3394.3,3393.8,1.17375]
[1735592727454,0.29504,3393.9,3393.8,1.17375]
[1735592727756,0.29504,3393.9,3393.8,0.8787]
[1735592728759,0.29504,3393.9,3393.8,0.4377]
[1735592729662,3.50284,3393.9,3393.8,0.4377]
[1735592730469,3.2078,3393.9,3393.5,0.29507]
[1735592730662,0.29507,3393.6,3393.5,0.29507]
[1735592731963,3.2078,3394.3,3393.5,3.94549]
[1735592732268,0.29503,3394.1,3394.0,0.29502]
[1735592733070,3.2078,3394.3,3393.7,0.4569]
[1735592733567,0.29503,3394.1,3394.0,0.29502]
[1735592734761,3.2078,3394.3,3393.7,1.19453]
[1735592734970,0.29502,3394.2,3394.1,0.29501]
[1735592738067,0.29504,3394.1,3394.0,0.29502]
[1735592738574,3.2078,3394.3,3393.7,0.4569]
[1735592738867,5.87553139,3393.8,3393.7,0.4569]
[1735592742372,0.29507,3393.5,3393.4,0.74438]
[1735592742668,0.29507,3393.5,3393.4,0.8677]
[1735592743271,0.29507,3393.5,3393.4,1.3071]
[1735592743875,0.29507,3393.5,3393.4,1.60218]
[1735592745664,0.29507,3393.5,3393.4,1.3071]
[1735592746272,0.2927119,3393.5,3393.4,1.3071]
[1735592746578,2.66539329,3393.5,3393.4,1.3071]
[1735592747570,0.2927119,3393.5,3393.4,1.3071]
[1735592749070,0.2927119,3393.5,3393.4,1.60218]
[1735592749268,0.2927119,3393.5,3393.4,1.3071]
[1735592750968,2.66539329,3393.5,3393.4,1.3071]
[1735592753380,0.2927119,3393.5,3393.4,1.3071]
[1735592754183,3.10823191,3393.5,3393.4,1.3071]
[1735592755173,3.10823191,3393.5,3392.2,0.29518]
[1735592755174,0.29519,3392.3,3392.2,0.29518]
[1735592755372,3.50299,3392.3,3392.2,0.29518]
[1735592756882,3.2078,3392.3,3392.2,0.29518]
[1735592757182,2.27686753,3392.5,3392.4,0.29517]
[1735592757385,3.4153013,3392.7,3392.4,5.0]
[1735592757683,3.2078,3393.1,3392.9,0.29513]
[1735592757883,0.29511,3393.1,3392.9,0.29513]
[1735592758183,0.29512,3393.0,3392.9,0.29513]
[1735592758383,0.29512,3393.0,3392.6,5.58048139]
[1735592758384,0.73784,3392.9,3392.1,3.2078]
[1735592758577,0.29517,3392.4,3391.9,2.66789139]
[1735592758780,0.29517,3392.4,3392.2,0.29518]
[1735592759180,0.29517,3392.4,3392.3,0.29518]
[1735592759376,3.2078,3392.6,3392.0,40.8]
[1735592759786,3.2078,3392.6,3392.2,0.29518]
[1735592759787,0.29518,3392.3,3392.2,0.29518]
[1735592760182,0.29518,3392.4,3392.2,0.29518]
[1735592760582,0.29517,3392.4,3392.3,0.29518]
[1735592760784,0.29517,3392.5,3392.3,0.29517]
[1735592760987,0.29517,3392.4,3392.3,0.29517]
[1735592761283,0.29517,3392.4,3392.2,2.37268139]
[1735592761284,0.4355,3392.8,3392.2,0.29518]
[1735592761592,0.29518,3392.4,3392.1,1.3305]
[1735592761787,11.33532762,3393.1,3392.3,0.73795]
[1735592761788,8.22485623,3393.1,3392.3,0.73795]
[1735592761983,7.76275623,3393.1,3392.8,0.29513]
[1735592762182,7.76275623,3393.1,3392.3,0.73795]
[1735592762183,4.55495623,3393.1,3393.0,0.29512]
[1735592762390,1.75335623,3393.1,3393.0,1.49212]
[1735592762686,1.75335623,3393.1,3393.0,6.49212]
[1735592762889,5.743716,3393.3,3393.2,0.2951]
[1735592763079,5.743716,3394.0,3393.9,0.29504]
[1735592763485,6.038746,3394.0,3393.8,2.66772139]
[1735592763685,5.743716,3394.0,3393.6,3.2078]
[1735592763985,0.29506,3393.7,3393.6,3.2078]
[1735592764183,0.29507,3393.6,3392.5,2.37268139]
[1735592764391,3.2078,3393.3,3392.5,2.37268139]
[1735592764594,0.29513,3392.9,3392.8,4.60382166]
[1735592765681,3.50293,3392.9,3392.8,4.60382166]
[1735592765883,3.50293,3392.9,3391.7,3.91032166]
[1735592765884,6.31831139,3392.9,3391.7,3.91032166]
[1735592766082,0.4514,3393.1,3391.7,3.91032166]
[1735592766083,3.2078,3391.9,3391.7,3.91032166]
[1735592766489,0.29522,3391.8,3391.7,3.91032166]
[1735592766796,0.74662,3391.8,3391.7,3.91032166]
[1735592767096,0.74662,3391.8,3391.6,0.29524]
[1735592767692,0.74662,3391.8,3391.6,0.29523]
[1735592767895,0.4514,3391.8,3391.7,0.29523]
[1735592768399,3.2078,3391.9,3391.4,2.37268139]
[1735592768600,3.2078,3391.9,3391.7,0.29523]
[1735592769306,0.2952,3392.1,3391.9,0.29521]
[1735592769505,3.2078,3392.4,3391.4,3.11081139]
[1735592769506,3.2078,3392.4,3391.7,5.58048139]
[1735592769703,0.29518,3392.3,3392.2,0.29519]
[1735592770101,0.29517,3392.4,3392.2,0.29519]
[1735592770301,6.178816,3392.6,3392.2,0.29519]
[1735592770501,6.178816,3392.6,3392.0,2.37268139]
[1735592770698,5.743716,3392.6,3392.5,0.29516]
[1735592770901,3.2078,3392.8,3392.1,0.4386]
[1735592770902,5.743716,3392.9,3392.3,2.37268139]
[1735592771109,5.743716,3392.9,3392.8,2.66781139]
[1735592771401,5.743716,3392.9,3392.8,43.46781139]
[1735592772303,5.743716,3392.9,3392.8,41.09513]
[1735592772598,3.945,3393.2,3393.0,0.29512]
[1735592772599,3.6499,3393.2,3393.0,0.29512]
[1735592772801,0.29511,3393.1,3392.9,0.29512]
[1735592772995,3.945,3393.2,3392.8,40.8]
[1735592773201,3.945,3393.2,3393.0,0.29511]
[1735592773403,3.94501,3393.2,3392.9,0.29513]
[1735592773603,3.94501,3393.2,3393.0,0.29511]
[1735592773805,3.94501,3393.2,3393.1,0.29511]
[1735592773806,3.6499,3393.2,3393.1,0.29511]
[1735592774808,0.4421,3393.2,3393.1,0.29511]
[1735592776795,0.7372,3393.2,3393.1,0.29511]
[1735592777196,0.29512,3393.1,3392.6,3.2078]
[1735592777404,0.29514,3392.7,3392.2,3.2078]
[1735592777613,0.29516,3392.5,3392.3,0.29518]
[1735592777908,1.15692,3393.0,3392.3,0.29518]
[1735592777909,0.4191,3392.4,3392.3,0.29518]
[1735592778500,0.4191,3392.4,3392.1,0.4386]
[1735592778710,0.4191,3392.4,3391.8,41.997]
[1735592778909,0.4191,3392.4,3392.3,0.29518]
[1735592782310,0.4191,3392.4,3392.0,3.503]
[1735592782311,0.2952,3392.1,3392.0,3.503]
[1735592782612,0.29519,3392.2,3392.0,3.503]
[1735592782807,0.2952,3392.1,3392.0,3.2078]
[1735592783410,0.29523,3391.7,3391.6,40.8]
[1735592783613,0.29523,3391.7,3391.4,0.29525]
[1735592783818,0.29525,3391.5,3391.3,0.29526]
[1735592784112,0.29525,3391.5,3391.4,0.29526]
[1735592784301,3.2078,3391.8,3391.5,0.29525]
[1735592784509,0.29524,3391.7,3391.5,0.29525]
[1735592784701,0.29524,3391.6,3391.5,0.29525]
[1735592785214,3.2078,3391.8,3391.7,0.29523]
[1735592786510,3.50302,3391.8,3391.3,41.2517]
[1735592786708,3.2078,3391.8,3391.7,0.29523]
[1735592786908,0.4567,3392.1,3391.3,44.09173886]
[1735592786909,0.7519,3392.1,3391.3,44.09173886]
[1735592787113,0.7519,3392.1,3391.9,0.29521]
[1735592787809,0.4567,3392.1,3391.9,0.29521]
[1735592788011,0.4567,3392.1,3392.0,0.2952]
[1735592788215,0.4334,3392.3,3391.7,2.84003886]
[1735592788413,0.4334,3392.3,3392.2,0.29519]
[1735592788816,0.4567,3392.5,3392.4,0.29517]
[1735592789008,5.743716,3392.6,3392.5,0.29516]
[1735592789314,3.2078,3393.0,3392.4,40.8]
[1735592789811,3.50292,3393.0,3392.8,0.29513]
[1735592790015,0.29513,3392.9,3392.4,40.8]
[1735592790216,3.50292,3393.0,3392.8,0.29513]
[1735592790619,0.29513,3392.9,3392.8,0.29513]
[1735592791214,3.50292,3393.0,3392.8,0.29513]
[1735592791513,0.29513,3392.9,3392.4,40.8]
[1735592791713,0.29513,3392.9,3392.8,0.29513]
[1735592792511,3.2078,3393.0,3392.8,0.29513]
[1735592792716,3.2078,3393.0,3392.9,0.29513]
[1735592793315,3.50292,3393.0,3392.9,0.29513]
[1735592793525,3.2078,3393.0,3392.9,0.29513]
[1735592795025,3.50292,3393.0,3392.9,0.29513]
[1735592796123,3.2078,3393.0,3392.9,0.29513]
[1735592796615,4.55204647,3393.4,3392.8,3.2078]
[1735592796821,4.55204647,3393.4,3393.3,0.29509]
[1735592797418,4.98364647,3393.5,3393.4,0.29508]
[1735592798022,4.55204647,3393.5,3393.4,0.29508]
[1735592799224,0.4347,3393.6,3393.5,0.29507]
[1735592799427,0.72977,3393.6,3393.5,0.29507]
[1735592799626,0.4347,3393.6,3393.5,0.29507]
[1735592799928,0.4347,3393.6,3393.5,41.09507]
[1735592800731,0.4347,3393.6,3393.5,0.29507]
[1735592802025,0.4347,3393.6,3392.9,1.6409]
[1735592802220,0.2951,3393.3,3393.2,0.29509]
[1735592802629,0.29509,3393.4,3393.3,0.29509]
[1735592803328,0.29508,3393.5,3393.4,0.29508]
[1735592804231,0.29508,3393.4,3393.3,0.29509]
[1735592806722,0.29508,3393.5,3393.4,0.29508]
[1735592808838,3.2078,3393.7,3393.6,0.29507]
[1735592809145,4.55204647,3393.9,3393.3,0.73774]
[1735592809433,0.4341,3393.8,3393.3,0.73774]
[1735592809630,0.4341,3393.8,3393.7,0.29506]
[1735592809631,0.72915,3393.8,3393.7,0.29506]
[1735592811839,0.4341,3393.8,3393.7,0.29506]
[1735592812233,0.72915,3393.8,3393.7,0.29506]
[1735592813734,0.4341,3393.8,3393.7,0.29506]
[1735592816638,3.2078,3394.1,3394.0,0.29503]
[1735592816843,4.55605209,3394.4,3394.3,0.295]
[1735592818036,4.55605209,3394.4,3394.3,41.095]
[1735592818432,3.6453,3394.5,3394.3,40.8]
[1735592818640,3.94029,3394.5,3394.4,0.295]
[1735592819040,3.6453,3394.5,3394.4,0.295]
[1735592819345,3.94029,3394.5,3394.4,0.295]
[1735592819845,3.6453,3394.5,3394.4,0.295]
[1735592821549,3.2078,3394.5,3394.4,0.295]
[1735592827149,3.2078,3394.5,3394.3,43.17494858]
[1735592827150,0.295,3394.4,3394.3,0.295]
[1735592827450,0.7453,3394.4,3394.3,0.295]
[1735592827838,0.7453,3394.4,3393.8,0.4319]
[1735592827839,0.29501,3394.3,3394.2,0.295]
[1735592828050,0.73331,3394.3,3394.2,0.295]
[1735592828338,0.4383,3394.3,3394.2,0.295]
[1735592830745,0.4383,3394.3,3393.7,5.58274858]
[1735592831046,0.4383,3394.3,3393.9,0.29504]
[1735592831047,3.50284,3394.0,3393.9,0.29504]
[1735592831248,3.2078,3394.0,3393.7,40.8]
[1735592831442,0.29508,3393.5,3392.9,1.03294]
[1735592831638,0.8828,3393.4,3393.3,0.29509]
[1735592831834,0.8828,3393.4,3393.1,40.8]
[1735592832042,0.29513,3392.9,3392.7,0.29514]
[1735592832242,3.2078,3393.1,3392.5,2.81564858]
[1735592832443,0.29512,3393.0,3392.8,0.29513]
[1735592833248,3.2078,3393.1,3392.2,2.37494858]
[1735592833445,0.29516,3392.6,3392.4,0.29517]
[1735592833751,0.416,3392.5,3392.4,0.29517]
[1735592836149,0.416,3392.5,3392.4,41.09517]
[1735592838454,3.2078,3392.7,3392.4,40.8]
[1735592838649,3.87888271,3393.0,3392.5,2.37494858]
[1735592838947,4.17400271,3393.0,3392.8,0.29513]
[1735592839149,3.87888271,3393.0,3392.5,2.37494858]
[1735592839353,4.17400271,3393.0,3392.8,0.29513]
[1735592839646,0.75722,3393.0,3392.7,0.29514]
[1735592839852,0.75722,3393.0,3392.8,0.29513]
[1735592840049,0.4621,3393.0,3392.5,2.37494858]
[1735592840250,0.4621,3393.0,3392.4,40.8]
[1735592840452,0.4621,3393.0,3392.5,0.29515]
[1735592840453,3.2078,3392.7,3392.5,0.29515]
[1735592840652,3.2078,3392.7,3392.4,41.09516]
[1735592840653,0.29515,3392.6,3392.4,41.09516]
[1735592840852,0.4175,3392.6,3392.5,0.29516]
[1735592844657,3.2078,3392.7,3392.5,0.29516]
[1735592844658,3.2078,3392.7,3392.6,0.29515]
[1735592845452,3.71191271,3392.9,3392.7,0.29514]
[1735592845646,3.2078,3392.8,3392.7,0.29514]
[1735592848758,3.50293,3392.8,3392.7,0.29514]
[1735592848958,3.2078,3392.8,3392.7,0.29514]
[1735592852857,3.2078,3392.8,3392.7,41.09514]
[1735592856456,0.4621,3393.0,3392.9,0.29513]
[1735592859163,0.8542,3393.4,3393.3,0.29509]
[1735592859364,0.8592,3393.4,3393.3,2.67003858]
[1735592859964,0.4392,3393.4,3393.3,2.67003858]
[1735592860368,0.4392,3393.4,3393.3,0.29509]
[1735592862778,0.4392,3393.4,3393.3,2.67003858]
[1735592864785,0.4392,3393.4,3393.3,0.29509]
[1735592874788,0.4392,3393.4,3393.3,2.67003858]
[1735592875184,3.41678271,3393.6,3393.3,2.37494858]
[1735592875486,3.41678271,3393.6,3393.5,0.29507]
[1735592876085,5.43265209,3393.7,3393.6,0.29507]
[1735592876486,4.98595209,3393.7,3393.6,0.29507]
[1735592877491,3.8594216,3393.7,3393.6,0.29507]
[1735592877796,3.4295216,3393.7,3393.6,2.67001858]
[1735592878289,3.4295216,3393.7,3393.6,5.87781858]
[1735592878490,2.0083016,3393.7,3393.6,54.05276716]
[1735592878692,4.55605209,3393.9,3393.6,54.95269716]
[1735592878997,4.55605209,3394.2,3394.1,0.29502]
[1735592879694,4.55605209,3394.2,3394.1,0.72952]
[1735592880603,3.2078,3394.5,3394.1,0.4345]
[1735592880790,3.2078,3394.5,3394.4,0.295]
[1735592882395,3.2078,3394.5,3394.3,2.37494858]
[1735592882699,3.2078,3394.5,3394.4,0.295]
[1735592885990,3.2078,3394.5,3394.3,2.37494858]
[1735592886199,3.2078,3394.5,3394.4,0.295]
[1735592886399,3.50279,3394.5,3394.3,2.37494858]
[1735592886699,3.50279,3394.5,3394.0,7.51531858]
[1735592886897,3.2078,3394.5,3394.4,0.295]
[1735592890601,3.2078,3394.5,3394.1,0.73755]
[1735592890602,0.29501,3394.3,3394.1,0.29502]
[1735592890903,1.3089,3394.2,3394.1,0.29502]
[1735592893000,0.29502,3394.1,3394.0,2.66997858]
[1735592893201,1.60392,3394.2,3394.0,2.37494858]
[1735592893393,1.60392,3394.2,3394.1,0.29502]
[1735592893590,1.3089,3394.2,3394.1,0.29502]
[1735592895202,3.59465288,3394.2,3394.1,0.29502]
[1735592896703,3.88966288,3394.2,3394.1,0.29502]
[1735592897299,3.59465288,3394.2,3394.1,0.29502]
[1735592897700,3.88966288,3394.2,3394.1,0.29502]
[1735592898998,3.59465288,3394.2,3394.1,0.29502]
[1735592899306,1.3089,3394.2,3394.1,0.29502]
[1735592899496,1.3089,3394.2,3394.1,41.09502]
[1735592902898,2.28464674,3394.4,3394.3,0.295]
[1735592903103,3.2078,3394.5,3394.4,0.295]
[1735592905511,5.49263963,3394.5,3394.4,0.295]
[1735592911812,2.28483963,3394.5,3394.4,0.295]
[1735592916213,3.6655,3394.6,3394.5,0.29499]
[1735592916410,3.6655,3394.6,3394.5,2.66993858]
[1735592917919,3.2078,3394.6,3394.5,2.66993858]
[1735592918312,3.2078,3394.6,3394.5,1.33795079]
[1735592918727,3.2078,3394.6,3394.5,42.13795079]
[1735592920114,5.49444356,3394.6,3394.5,42.13795079]
[1735592920419,2.28664356,3394.6,3394.5,42.13795079]
[1735592923720,2.28664356,3394.6,3394.5,1.33795079]
[1735592924317,4.97355209,3394.8,3394.5,1.04296079]
[1735592924520,4.97355209,3394.8,3394.7,1.33793079]
[1735592925418,4.97355209,3394.8,3394.4,40.8]
[1735592925616,5.71097209,3394.8,3394.4,1.04296079]
[1735592925923,0.29497,3394.7,3394.6,1.04296079]
[1735592926724,4.97355209,3394.8,3394.2,3.94533]
[1735592926725,0.29499,3394.5,3394.4,1.33795079]
[1735592926912,4.97355209,3394.8,3394.4,1.33795079]
[1735592926913,0.29498,3394.6,3394.5,0.29499]
[1735592927222,0.29498,3394.6,3394.5,1.33795079]
[1735592927819,6.11256511,3394.8,3394.7,0.29497]
[1735592928019,6.11256511,3394.8,3394.7,1.33793079]
[1735592929621,0.4175,3394.8,3394.7,1.33793079]
[1735592932222,4.99444835,3394.8,3394.7,1.33793079]
[1735592934526,0.4175,3394.8,3394.7,1.33793079]
[1735592936935,4.99444835,3394.8,3394.7,1.33793079]
[1735592938426,0.4175,3394.8,3394.7,1.33793079]
[1735592939534,3.8473619,3394.8,3394.7,1.33793079]
[1735592942137,0.71246,3394.8,3394.7,1.04296079]
[1735592942336,0.4175,3394.8,3394.7,1.04296079]
[1735592942533,0.4175,3394.8,3394.7,1.33793079]
[1735592943937,0.71246,3394.8,3394.7,1.33793079]
[1735592946239,4.50677667,3394.8,3394.7,1.33793079]
[1735592946440,4.21181667,3394.8,3394.7,1.33793079]
[1735592947242,0.29498,3394.6,3394.3,1.194]
[1735592947434,0.4534,3394.5,3394.4,0.295]
[1735592947638,4.50677667,3394.8,3394.7,0.29497]
[1735592947938,4.66521667,3394.8,3394.7,0.29497]
[1735592948539,4.66521667,3394.8,3394.7,1.33793079]
[1735592948743,10.36028178,3394.8,3394.7,1.33793079]
[1735592949333,10.65524178,3394.8,3394.7,1.33793079]
[1735592949535,10.36028178,3394.8,3394.7,1.33793079]
[1735592949939,0.8709,3394.8,3394.7,1.33793079]
[1735592950742,5.69506511,3394.9,3394.8,0.29496]
[1735592951043,5.69506511,3394.9,3394.8,0.74836]
[1735592951245,5.69506511,3394.9,3394.8,1.19976]
[1735592951742,9.49043847,3395.0,3394.9,0.29495]
[1735592952042,9.49043847,3395.0,3394.9,1.33791079]
[1735592952242,9.49043847,3395.0,3394.9,2.38087158]
[1735592953145,9.49043847,3395.0,3394.9,1.33791079]
[1735592953449,4.58023173,3395.0,3394.9,1.33791079]
[1735592954336,4.87517173,3395.0,3394.9,1.04296079]
[1735592954544,4.58023173,3395.0,3394.9,1.04296079]
[1735592954747,4.58023173,3395.0,3394.9,1.33791079]
[1735592955339,14.07057454,3395.0,3394.9,1.33791079]
[1735592955539,9.49034281,3395.0,3394.9,1.33791079]
[1735592956445,9.49034281,3395.0,3394.4,0.73749]
[1735592956647,3.2078,3394.7,3394.4,1.04296079]
[1735592956843,1.16838,3394.6,3394.4,1.33795079]
[1735592957038,1.3038,3394.6,3394.5,0.29499]
[1735592957952,5.88291665,3394.6,3394.5,1.04296079]
[1735592958952,5.88291665,3394.6,3394.5,1.33795079]
[1735592959346,5.88291665,3394.6,3394.5,0.29499]
[1735592959548,10.79411757,3394.6,3394.5,0.29499]
[1735592959954,9.49031757,3394.6,3394.5,0.29499]
[1735592960844,5.69506511,3394.8,3394.7,0.29497]
[1735592961049,5.69506511,3394.8,3394.7,1.33793079]
[1735592962152,9.78527757,3394.9,3394.7,1.33793079]
[1735592962352,9.78527757,3394.9,3394.7,0.29497]
[1735592962851,0.4601,3394.8,3394.7,0.29497]
[1735592963253,9.95041757,3394.8,3394.5,2.37293546]
[1735592963449,0.29497,3394.7,3394.5,0.29498]
[1735592963758,0.4295,3394.6,3394.5,0.29498]
[1735592964057,5.4635584,3394.6,3394.5,0.29498]
[1735592965956,5.0340584,3394.6,3394.5,0.29498]
[1735592966454,0.4571,3394.6,3394.5,0.29498]
[1735592967451,0.4571,3394.6,3394.5,2.66791546]
[1735592968055,3.88616425,3394.6,3394.5,2.66791546]
[1735592970457,0.4571,3394.6,3394.5,2.66791546]
[1735592974655,0.4571,3394.6,3394.1,0.26994746]
[1735592974656,0.29501,3394.2,3394.1,0.26994746]
[1735592974858,0.29501,3394.2,3393.1,19.3933273]
[1735592974859,0.29508,3393.4,3393.1,16.1855273]
[1735592975060,3.50288,3393.4,3393.1,16.1855273]
[1735592975663,3.50288,3393.4,3392.5,0.8473]
[1735592975664,3.2078,3393.4,3392.5,0.8473]
[1735592975961,3.2078,3392.9,3392.5,0.8473]
[1735592976166,0.29515,3392.6,3392.5,1.14246]